[Event "GrandPrix_30.05"]
[Site "Chess.com"]
[Date "2020.05.30"]
[Round "4"]
[White "madamDD"]
[Black "Msb2"]
[Result "0-1"]
[WhiteElo "2424"]
[BlackElo "2662"]
[TimeControl "600+2"]
[EndTime "9:47:54 PDT"]
[Termination "Msb2 won by resignation"]

1. e4 {[%clk 0:10:01.9]} 1... e6 {[%clk 0:10:01.3]} 2. d4 {[%clk 0:10:02.1]}
2... d5 {[%clk 0:10:02.4]} 3. Nd2 {[%clk 0:09:50.5]} 3... c5 {[%clk 0:10:02.1]}
4. exd5 {[%clk 0:09:50]} 4... Qxd5 {[%clk 0:10:04]} 5. Ngf3 {[%clk 0:09:47.7]}
5... cxd4 {[%clk 0:10:05.2]} 6. Bc4 {[%clk 0:09:48.2]} 6... Qd7 {[%clk
0:10:03.5]} 7. O-O {[%clk 0:09:46]} 7... Nc6 {[%clk 0:10:04.8]} 8. Nb3 {[%clk
0:09:42.5]} 8... a6 {[%clk 0:10:06]} 9. Nbxd4 {[%clk 0:08:35.5]} 9... Nxd4
{[%clk 0:10:07.9]} 10. Nxd4 {[%clk 0:08:36.1]} 10... Qc7 {[%clk 0:10:06.2]} 11.
Bb3 {[%clk 0:08:26.1]} 11... Bd6 {[%clk 0:09:58]} 12. Qh5 {[%clk 0:08:21.3]}
12... Nf6 {[%clk 0:09:58.5]} 13. Qh4 {[%clk 0:08:20.3]} 13... Bd7 {[%clk
0:09:51.8]} 14. Bg5 {[%clk 0:08:05.6]} 14... O-O-O {[%clk 0:09:44.9]} 15. Rad1
{[%clk 0:06:58]} 15... h6 {[%clk 0:09:39.4]} 16. Bxf6 {[%clk 0:06:55.3]} 16...
gxf6 {[%clk 0:09:41.3]} 17. Rd3 {[%clk 0:06:21]} 17... Kb8 {[%clk 0:09:41]} 18.
Rc3 {[%clk 0:05:36]} 18... Qa5 {[%clk 0:09:09.5]} 19. Qxf6 {[%clk 0:05:34.1]}
19... Qg5 {[%clk 0:08:00.3]} 20. Qxf7 {[%clk 0:04:34.5]} 20... Rhf8 {[%clk
0:07:32.1]} 21. Nxe6 {[%clk 0:03:57.8]} 21... Qe5 {[%clk 0:07:22.9]} 22. f4
{[%clk 0:03:48.1]} 22... Bc5+ {[%clk 0:07:12.1]} 23. Nxc5 {[%clk 0:03:19]} 23...
Qd4+ {[%clk 0:07:12.1]} 24. Rf2 {[%clk 0:02:01.8]} 24... Qd1+ {[%clk 0:07:10.9]}
25. Rf1 {[%clk 0:02:01.3]} 25... Qd4+ {[%clk 0:07:12.8]} 26. Rf2 {[%clk
0:02:02.5]} 26... Rxf7 {[%clk 0:07:14.2]} 27. Bxf7 {[%clk 0:02:02.8]} 27... Bb5
{[%clk 0:06:44.8]} 28. Nd3 {[%clk 0:01:16.9]} 28... Rf8 {[%clk 0:06:44.6]} 29.
Bh5 {[%clk 0:01:15.8]} 29... Qe3 {[%clk 0:06:35]} 30. h3 {[%clk 0:00:53.2]}
30... Rxf4 {[%clk 0:06:18.6]} 31. Nxf4 {[%clk 0:00:47.5]} 31... Qe1+ {[%clk
0:06:19.8]} 32. Kh2 {[%clk 0:00:47]} 32... Qxf2 {[%clk 0:06:21.2]} 33. Bf3
{[%clk 0:00:24.9]} 33... Qd4 {[%clk 0:06:09.9]} 34. a3 {[%clk 0:00:16.9]} 34...
Qxf4+ {[%clk 0:06:10.6]} 0-1

[Event "GrandPrix_30.05"]
[Site "Chess.com"]
[Date "2020.05.30"]
[Round "4"]
[White "AlexVanGog"]
[Black "SavelievAlexei"]
[Result "1-0"]
[WhiteElo "2494"]
[BlackElo "2203"]
[TimeControl "600+2"]
[EndTime "9:47:57 PDT"]
[Termination "AlexVanGog won by resignation"]

1. d4 {[%clk 0:10:01.9]} 1... Nf6 {[%clk 0:10:00.1]} 2. c4 {[%clk 0:10:02.4]}
2... e6 {[%clk 0:10:01.3]} 3. Nc3 {[%clk 0:10:02.3]} 3... Bb4 {[%clk 0:10:01.6]}
4. e3 {[%clk 0:10:03.9]} 4... O-O {[%clk 0:09:57.5]} 5. Ne2 {[%clk 0:10:04.1]}
5... d5 {[%clk 0:09:52.5]} 6. a3 {[%clk 0:10:03.9]} 6... Bd6 {[%clk 0:09:53.5]}
7. c5 {[%clk 0:10:02.1]} 7... Be7 {[%clk 0:09:54.6]} 8. Nf4 {[%clk 0:10:02.8]}
8... b6 {[%clk 0:09:54.2]} 9. b4 {[%clk 0:10:03.3]} 9... a5 {[%clk 0:09:54.7]}
10. Rb1 {[%clk 0:09:59.7]} 10... c6 {[%clk 0:09:53.4]} 11. Bd3 {[%clk
0:09:56.8]} 11... Ba6 {[%clk 0:09:53.6]} 12. O-O {[%clk 0:09:57.4]} 12... Qc8
{[%clk 0:09:22.6]} 13. Qe2 {[%clk 0:09:55.3]} 13... Bxd3 {[%clk 0:08:52.4]} 14.
Nxd3 {[%clk 0:09:54.9]} 14... Nbd7 {[%clk 0:08:48.4]} 15. Bd2 {[%clk 0:09:53.5]}
15... Qc7 {[%clk 0:08:41.2]} 16. Rfc1 {[%clk 0:09:50.2]} 16... axb4 {[%clk
0:08:33.4]} 17. axb4 {[%clk 0:09:48.4]} 17... bxc5 {[%clk 0:08:34.5]} 18. dxc5
{[%clk 0:09:43]} 18... Rfb8 {[%clk 0:08:16.3]} 19. e4 {[%clk 0:09:40.6]} 19...
e5 {[%clk 0:06:46.7]} 20. Bg5 {[%clk 0:08:52.4]} 20... d4 {[%clk 0:06:00.1]} 21.
Nd1 {[%clk 0:08:50.1]} 21... h6 {[%clk 0:05:46.8]} 22. Bxf6 {[%clk 0:08:46.2]}
22... Bxf6 {[%clk 0:05:45]} 23. N1b2 {[%clk 0:08:45.6]} 23... Ra2 {[%clk
0:05:39.4]} 24. Rc2 {[%clk 0:08:45.7]} 24... Rba8 {[%clk 0:05:26]} 25. Nc4
{[%clk 0:08:38.6]} 25... Ra1 {[%clk 0:05:12.5]} 26. Qd1 {[%clk 0:07:47.2]} 26...
Rxb1 {[%clk 0:04:36.4]} 27. Qxb1 {[%clk 0:07:46.3]} 27... Qa7 {[%clk 0:04:38]}
28. g3 {[%clk 0:07:44.4]} 28... Qa6 {[%clk 0:04:11.4]} 29. Kg2 {[%clk
0:07:29.2]} 29... Rb8 {[%clk 0:03:29.9]} 30. Qa2 {[%clk 0:07:23.3]} 30... Qb5
{[%clk 0:03:13.8]} 31. Qa5 {[%clk 0:07:12.9]} 31... Kf8 {[%clk 0:02:17.1]} 32.
Qxb5 {[%clk 0:07:03.5]} 32... cxb5 {[%clk 0:02:16]} 33. Na5 {[%clk 0:07:03.3]}
33... Ke8 {[%clk 0:02:05.6]} 34. f4 {[%clk 0:07:01.9]} 34... g5 {[%clk
0:02:01.8]} 35. fxe5 {[%clk 0:06:59.5]} 35... Bg7 {[%clk 0:01:54.4]} 36. Nc6
{[%clk 0:06:55]} 36... Rb7 {[%clk 0:01:50.5]} 37. Nxd4 {[%clk 0:06:52.4]} 37...
Nxe5 {[%clk 0:01:49.6]} 38. Nxe5 {[%clk 0:06:11.1]} 38... Bxe5 {[%clk
0:01:51.5]} 39. c6 {[%clk 0:06:12.1]} 39... Rb8 {[%clk 0:01:37.8]} 40. c7 {[%clk
0:06:10.6]} 40... Rc8 {[%clk 0:01:37.1]} 41. Nxb5 {[%clk 0:06:11.5]} 41... Kd7
{[%clk 0:01:38]} 42. Kf3 {[%clk 0:05:41.4]} 42... Ra8 {[%clk 0:01:38.4]} 43. Kg4
{[%clk 0:05:38]} 1-0

[Event "GrandPrix_30.05"]
[Site "Chess.com"]
[Date "2020.05.30"]
[Round "4"]
[White "Jan1401"]
[Black "Hrant_ChessMood"]
[Result "0-1"]
[WhiteElo "2303"]
[BlackElo "2784"]
[TimeControl "600+2"]
[EndTime "9:47:58 PDT"]
[Termination "Hrant_ChessMood won by checkmate"]

1. e4 {[%clk 0:09:53.4]} 1... c6 {[%clk 0:09:59.4]} 2. Nf3 {[%clk 0:09:52.7]}
2... d5 {[%clk 0:09:59.1]} 3. d3 {[%clk 0:09:53.7]} 3... g6 {[%clk 0:10:00.5]}
4. e5 {[%clk 0:09:53.4]} 4... Bg7 {[%clk 0:09:54.6]} 5. d4 {[%clk 0:09:52]} 5...
c5 {[%clk 0:09:43.7]} 6. dxc5 {[%clk 0:09:39.9]} 6... Nc6 {[%clk 0:09:36.9]} 7.
Nc3 {[%clk 0:09:09.6]} 7... e6 {[%clk 0:07:46.5]} 8. Bf4 {[%clk 0:08:43.8]} 8...
Nge7 {[%clk 0:07:35.3]} 9. Bb5 {[%clk 0:08:11.9]} 9... O-O {[%clk 0:07:22.4]}
10. a3 {[%clk 0:07:55.3]} 10... b6 {[%clk 0:06:13.7]} 11. cxb6 {[%clk
0:07:17.1]} 11... Qxb6 {[%clk 0:06:13.1]} 12. O-O {[%clk 0:07:14.3]} 12... Ba6
{[%clk 0:06:07.6]} 13. a4 {[%clk 0:06:50.9]} 13... Rfd8 {[%clk 0:05:18.5]} 14.
Bxa6 {[%clk 0:06:23.7]} 14... Qxa6 {[%clk 0:05:18.2]} 15. Nb5 {[%clk 0:06:24.3]}
15... Qb7 {[%clk 0:05:05.5]} 16. b3 {[%clk 0:06:15.1]} 16... h6 {[%clk 0:04:59]}
17. h4 {[%clk 0:06:11.5]} 17... Nf5 {[%clk 0:04:50.1]} 18. g4 {[%clk 0:05:56.5]}
18... Nxh4 {[%clk 0:04:25.6]} 19. Nxh4 {[%clk 0:05:53.9]} 19... g5 {[%clk
0:04:26.9]} 20. Bg3 {[%clk 0:05:29.8]} 20... gxh4 {[%clk 0:04:27.2]} 21. Bxh4
{[%clk 0:05:31]} 21... Nxe5 {[%clk 0:04:28.4]} 22. Bxd8 {[%clk 0:05:29.1]} 22...
Rxd8 {[%clk 0:04:30.3]} 23. f4 {[%clk 0:05:17.1]} 23... Nc6 {[%clk 0:04:20.9]}
24. Rc1 {[%clk 0:05:09.2]} 24... a6 {[%clk 0:04:17]} 25. Na3 {[%clk 0:05:05.1]}
25... Bb2 {[%clk 0:03:47.2]} 26. Nb1 {[%clk 0:04:38]} 26... Qb6+ {[%clk
0:03:48]} 27. Kg2 {[%clk 0:04:34.4]} 27... Qe3 {[%clk 0:03:45.1]} 28. Nd2 {[%clk
0:04:16.8]} 28... Bxc1 {[%clk 0:03:39]} 29. Qxc1 {[%clk 0:04:17.9]} 29... Nd4
{[%clk 0:03:09.3]} 30. c3 {[%clk 0:03:37.4]} 30... Ne2 {[%clk 0:02:58.4]} 31.
Qe1 {[%clk 0:03:15.3]} 31... Nxf4+ {[%clk 0:02:58.2]} 32. Kh2 {[%clk 0:03:16.5]}
32... Qh3+ {[%clk 0:02:58.5]} 33. Kg1 {[%clk 0:03:16.6]} 33... Qg2# {[%clk
0:03:00.4]} 0-1

[Event "GrandPrix_30.05"]
[Site "Chess.com"]
[Date "2020.05.30"]
[Round "4"]
[White "SergeyVashchilov"]
[Black "ZverevLev"]
[Result "1/2-1/2"]
[WhiteElo "2053"]
[BlackElo "2104"]
[TimeControl "600+2"]
[EndTime "9:48:17 PDT"]
[Termination "Game drawn by repetition"]

1. e4 {[%clk 0:10:01.9]} 1... e5 {[%clk 0:09:43.1]} 2. Nf3 {[%clk 0:10:02.4]}
2... Nc6 {[%clk 0:09:41.6]} 3. d4 {[%clk 0:10:03.5]} 3... exd4 {[%clk
0:09:40.9]} 4. Nxd4 {[%clk 0:10:05.4]} 4... Bc5 {[%clk 0:09:40.1]} 5. Nb3 {[%clk
0:10:05.9]} 5... Bb6 {[%clk 0:09:39.9]} 6. Nc3 {[%clk 0:10:07]} 6... Nf6 {[%clk
0:09:40.1]} 7. Qe2 {[%clk 0:10:08]} 7... a5 {[%clk 0:09:36.7]} 8. Na4 {[%clk
0:09:53.8]} 8... Ba7 {[%clk 0:09:12.9]} 9. Bg5 {[%clk 0:09:54.5]} 9... O-O
{[%clk 0:09:11]} 10. O-O-O {[%clk 0:09:55.5]} 10... h6 {[%clk 0:09:06.6]} 11.
Bh4 {[%clk 0:09:55.7]} 11... d6 {[%clk 0:08:59.1]} 12. f3 {[%clk 0:09:47.8]}
12... Rb8 {[%clk 0:08:53.8]} 13. Nc3 {[%clk 0:09:36.1]} 13... b5 {[%clk
0:08:52.5]} 14. Nxb5 {[%clk 0:08:40.8]} 14... Ba6 {[%clk 0:08:51.7]} 15. Nxa7
{[%clk 0:07:13.2]} 15... Bxe2 {[%clk 0:08:47.7]} 16. Nxc6 {[%clk 0:07:13.9]}
16... Qe8 {[%clk 0:08:47.1]} 17. Bxe2 {[%clk 0:06:55.8]} 17... Qxc6 {[%clk
0:08:46.3]} 18. Bxf6 {[%clk 0:06:52.8]} 18... gxf6 {[%clk 0:08:45.9]} 19. Nd4
{[%clk 0:06:16.9]} 19... Qb6 {[%clk 0:08:46.1]} 20. b3 {[%clk 0:06:17.3]} 20...
a4 {[%clk 0:08:44.2]} 21. Nf5 {[%clk 0:06:06.6]} 21... axb3 {[%clk 0:08:43.1]}
22. axb3 {[%clk 0:06:05.5]} 22... Qa5 {[%clk 0:08:38.3]} 23. Bc4 {[%clk
0:04:46.2]} 23... Qc3 {[%clk 0:08:34]} 24. Ne7+ {[%clk 0:04:45.7]} 24... Kh8
{[%clk 0:08:32.6]} 25. Nd5 {[%clk 0:04:47.2]} 25... Qa5 {[%clk 0:08:28]} 26. Kb2
{[%clk 0:04:37.9]} 26... c6 {[%clk 0:08:26.6]} 27. Nc3 {[%clk 0:03:42.6]} 27...
Qb4 {[%clk 0:08:16.9]} 28. Be2 {[%clk 0:03:08.3]} 28... Ra8 {[%clk 0:08:09.7]}
29. Ra1 {[%clk 0:02:50.6]} 29... Rfb8 {[%clk 0:08:08.6]} 30. Rhd1 {[%clk
0:02:38.7]} 30... c5 {[%clk 0:08:07.3]} 31. Rxa8 {[%clk 0:02:21.7]} 31... Rxa8
{[%clk 0:08:04.8]} 32. Nb5 {[%clk 0:01:53.1]} 32... Qa5 {[%clk 0:08:01.5]} 33.
Nxd6 {[%clk 0:01:50.6]} 33... Qa3+ {[%clk 0:07:59.6]} 34. Kc3 {[%clk 0:01:49.6]}
34... Rb8 {[%clk 0:07:53]} 35. Nxf7+ {[%clk 0:01:33.8]} 35... Kg7 {[%clk
0:07:50.7]} 36. Bc4 {[%clk 0:01:35.3]} 36... Ra8 {[%clk 0:07:46.4]} 37. h4
{[%clk 0:01:00.6]} 37... Rb8 {[%clk 0:07:35]} 38. h5 {[%clk 0:00:38.3]} 38...
Qb4+ {[%clk 0:07:36.3]} 39. Kd3 {[%clk 0:00:35]} 39... Rb7 {[%clk 0:07:34.4]}
40. Nd6 {[%clk 0:00:32.5]} 40... Rd7 {[%clk 0:07:32.5]} 41. Ke2 {[%clk
0:00:31.8]} 41... Kf8 {[%clk 0:07:33]} 42. Rd3 {[%clk 0:00:15.6]} 42... Qb8
{[%clk 0:07:28.2]} 43. Nf5 {[%clk 0:00:13.3]} 43... Rxd3 {[%clk 0:07:28.7]} 44.
cxd3 {[%clk 0:00:10.1]} 44... Qf4 {[%clk 0:07:29.3]} 45. g4 {[%clk 0:00:10.2]}
45... Qc1 {[%clk 0:07:29.1]} 46. Kf2 {[%clk 0:00:08.7]} 46... Qd2+ {[%clk
0:07:29]} 47. Kg3 {[%clk 0:00:09.6]} 47... Ke8 {[%clk 0:07:25.6]} 48. f4 {[%clk
0:00:10.1]} 48... Qe1+ {[%clk 0:07:25.8]} 49. Kf3 {[%clk 0:00:11.3]} 49... Qf1+
{[%clk 0:07:26.7]} 50. Kg3 {[%clk 0:00:11.5]} 50... Qg1+ {[%clk 0:07:27]} 51.
Kf3 {[%clk 0:00:12.4]} 51... Qf1+ {[%clk 0:07:22.9]} 52. Kg3 {[%clk 0:00:12.3]}
52... Qg1+ {[%clk 0:07:23.5]} 53. Kf3 {[%clk 0:00:13.4]} 53... Qf1+ {[%clk
0:07:24.2]} 1/2-1/2

[Event "GrandPrix_30.05"]
[Site "Chess.com"]
[Date "2020.05.30"]
[Round "4"]
[White "Mizner"]
[Black "tianachess"]
[Result "1-0"]
[WhiteElo "2118"]
[BlackElo "1982"]
[TimeControl "600+2"]
[EndTime "9:48:38 PDT"]
[Termination "Mizner won on time"]

1. d4 {[%clk 0:10:01.9]} 1... Nf6 {[%clk 0:09:17.1]} 2. c4 {[%clk 0:10:01.2]}
2... c5 {[%clk 0:09:17.5]} 3. d5 {[%clk 0:10:01.3]} 3... b5 {[%clk 0:09:18]} 4.
cxb5 {[%clk 0:10:01.9]} 4... a6 {[%clk 0:09:18.2]} 5. bxa6 {[%clk 0:10:03.8]}
5... g6 {[%clk 0:09:18.9]} 6. Nc3 {[%clk 0:10:05.2]} 6... Bxa6 {[%clk
0:09:18.9]} 7. g3 {[%clk 0:10:04.4]} 7... d6 {[%clk 0:09:18.5]} 8. Bg2 {[%clk
0:10:05.7]} 8... Bg7 {[%clk 0:09:19.6]} 9. Nf3 {[%clk 0:10:06.1]} 9... O-O
{[%clk 0:09:20.2]} 10. O-O {[%clk 0:10:07.1]} 10... Nbd7 {[%clk 0:09:20.8]} 11.
Rb1 {[%clk 0:10:08.5]} 11... Qa5 {[%clk 0:09:15.1]} 12. Qc2 {[%clk 0:09:41.3]}
12... Bc4 {[%clk 0:08:00.5]} 13. Bd2 {[%clk 0:09:33.4]} 13... Qa6 {[%clk
0:07:54.5]} 14. b3 {[%clk 0:09:12.8]} 14... Bxe2 {[%clk 0:05:20.1]} 15. Nxe2
{[%clk 0:09:07.7]} 15... Qxe2 {[%clk 0:05:20]} 16. Rfe1 {[%clk 0:08:56.3]} 16...
Qa6 {[%clk 0:05:19.8]} 17. Rxe7 {[%clk 0:08:52.9]} 17... Qxa2 {[%clk 0:05:15.6]}
18. Qxa2 {[%clk 0:08:48.2]} 18... Rxa2 {[%clk 0:05:15.2]} 19. Bf4 {[%clk
0:08:49]} 19... Rd8 {[%clk 0:05:05.9]} 20. Ng5 {[%clk 0:08:10.8]} 20... Bf8
{[%clk 0:04:50.9]} 21. Rxf7 {[%clk 0:08:10.9]} 21... h6 {[%clk 0:04:51]} 22. Ne6
{[%clk 0:08:11.9]} 22... Rda8 {[%clk 0:04:05.8]} 23. Rxf8+ {[%clk 0:07:04.6]}
23... Nxf8 {[%clk 0:04:05.5]} 24. Bxd6 {[%clk 0:07:04.4]} 24... Ra1 {[%clk
0:01:59.5]} 25. Rf1 {[%clk 0:07:04.8]} 25... Rxf1+ {[%clk 0:01:31.3]} 26. Bxf1
{[%clk 0:07:06.7]} 26... Nxe6 {[%clk 0:01:25.3]} 27. dxe6 {[%clk 0:07:05.8]}
27... Ne4 {[%clk 0:01:19.8]} 28. Be5 {[%clk 0:06:13.8]} 28... Nd2 {[%clk
0:00:52.3]} 29. Bg2 {[%clk 0:06:08.3]} 29... Rd8 {[%clk 0:00:21.7]} 30. e7
{[%clk 0:06:03.7]} 30... Re8 {[%clk 0:00:22.4]} 31. Bd5+ {[%clk 0:06:04.9]}
31... Kh7 {[%clk 0:00:22.6]} 32. Bf6 {[%clk 0:06:04.6]} 32... Rb8 {[%clk
0:00:05.7]} 33. h4 {[%clk 0:05:39.4]} 33... g5 {[%clk 0:00:04.9]} 34. h5 {[%clk
0:05:39.7]} 1-0

[Event "GrandPrix_30.05"]
[Site "Chess.com"]
[Date "2020.05.30"]
[Round "4"]
[White "bernereremit"]
[Black "SacrificeGod"]
[Result "1-0"]
[WhiteElo "2131"]
[BlackElo "2230"]
[TimeControl "600+2"]
[EndTime "9:49:02 PDT"]
[Termination "bernereremit won by resignation"]

1. e4 {[%clk 0:09:52.2]} 1... c5 {[%clk 0:09:59.8]} 2. Nc3 {[%clk 0:09:52.3]}
2... d6 {[%clk 0:10:00.5]} 3. Nf3 {[%clk 0:09:52.6]} 3... Nf6 {[%clk 0:09:59.9]}
4. d4 {[%clk 0:09:54]} 4... cxd4 {[%clk 0:10:01.2]} 5. Nxd4 {[%clk 0:09:55.4]}
5... g6 {[%clk 0:10:02.6]} 6. Bc4 {[%clk 0:09:50.1]} 6... Bg7 {[%clk 0:10:03.5]}
7. f3 {[%clk 0:09:49.3]} 7... O-O {[%clk 0:10:04]} 8. Be3 {[%clk 0:09:50]} 8...
Nc6 {[%clk 0:10:05.2]} 9. Bb3 {[%clk 0:09:51.4]} 9... Bd7 {[%clk 0:10:02.2]} 10.
h4 {[%clk 0:09:51.8]} 10... h5 {[%clk 0:10:02.6]} 11. Qd2 {[%clk 0:09:52]} 11...
Rb8 {[%clk 0:09:57.3]} 12. Nxc6 {[%clk 0:09:40.9]} 12... Bxc6 {[%clk 0:09:20.6]}
13. Bxa7 {[%clk 0:09:36.5]} 13... Ra8 {[%clk 0:09:20.3]} 14. Bd4 {[%clk
0:09:30.6]} 14... b5 {[%clk 0:08:55.9]} 15. O-O {[%clk 0:09:02.7]} 15... e5
{[%clk 0:07:59.6]} 16. Be3 {[%clk 0:08:53.9]} 16... b4 {[%clk 0:07:55]} 17. Ne2
{[%clk 0:07:40.4]} 17... d5 {[%clk 0:07:53.6]} 18. exd5 {[%clk 0:07:36.7]} 18...
Nxd5 {[%clk 0:07:52.8]} 19. Bg5 {[%clk 0:07:34.6]} 19... Qb6+ {[%clk 0:07:47.2]}
20. Kh1 {[%clk 0:07:23.1]} 20... Rfd8 {[%clk 0:06:29]} 21. Bxd8 {[%clk
0:07:22.4]} 21... Qxd8 {[%clk 0:06:30.9]} 22. g3 {[%clk 0:07:04.7]} 22... e4
{[%clk 0:05:19.4]} 23. fxe4 {[%clk 0:06:44.7]} 23... Nf6 {[%clk 0:05:18.2]} 24.
Qxd8+ {[%clk 0:06:42.7]} 24... Rxd8 {[%clk 0:05:20.1]} 25. Rad1 {[%clk
0:05:57.2]} 25... Bxe4+ {[%clk 0:05:15.9]} 26. Kg1 {[%clk 0:05:46.2]} 26... Rc8
{[%clk 0:02:28.1]} 27. Rd6 {[%clk 0:05:28.8]} 27... Ng4 {[%clk 0:01:28.6]} 28.
Rxf7 {[%clk 0:05:15.2]} 28... Rf8 {[%clk 0:00:35.9]} 29. Rf4+ {[%clk 0:04:35.6]}
1-0

[Event "GrandPrix_30.05"]
[Site "Chess.com"]
[Date "2020.05.30"]
[Round "4"]
[White "ly4o"]
[Black "VolodymyrMolyboha"]
[Result "1/2-1/2"]
[WhiteElo "2031"]
[BlackElo "2186"]
[TimeControl "600+2"]
[EndTime "9:49:04 PDT"]
[Termination "Game drawn by repetition"]

1. d4 {[%clk 0:10:01.9]} 1... g6 {[%clk 0:09:58.9]} 2. c4 {[%clk 0:10:02.6]}
2... Bg7 {[%clk 0:09:59.8]} 3. Nc3 {[%clk 0:10:03.8]} 3... d6 {[%clk 0:10:00.4]}
4. e4 {[%clk 0:10:04.5]} 4... Nc6 {[%clk 0:10:01.1]} 5. Be3 {[%clk 0:10:05.1]}
5... e5 {[%clk 0:10:01.8]} 6. d5 {[%clk 0:10:06.1]} 6... Nce7 {[%clk 0:10:03.1]}
7. g4 {[%clk 0:10:04.9]} 7... f5 {[%clk 0:10:04]} 8. gxf5 {[%clk 0:10:05.5]}
8... gxf5 {[%clk 0:10:04.8]} 9. Qh5+ {[%clk 0:10:05.7]} 9... Kf8 {[%clk
0:10:06]} 10. exf5 {[%clk 0:10:03.5]} 10... Nxf5 {[%clk 0:10:04.3]} 11. Bd3
{[%clk 0:09:40.8]} 11... Nf6 {[%clk 0:09:35.8]} 12. Qe2 {[%clk 0:09:37.5]} 12...
a6 {[%clk 0:08:35.3]} 13. Nf3 {[%clk 0:09:25.4]} 13... Nxe3 {[%clk 0:06:54.3]}
14. fxe3 {[%clk 0:09:25.6]} 14... Bg4 {[%clk 0:06:53.1]} 15. h3 {[%clk
0:09:24.4]} 15... Bh5 {[%clk 0:06:53]} 16. Qf2 {[%clk 0:09:20.1]} 16... Bh6
{[%clk 0:06:35.5]} 17. O-O-O {[%clk 0:09:12.7]} 17... Rg8 {[%clk 0:06:02.4]} 18.
Rdf1 {[%clk 0:09:11.1]} 18... Ke8 {[%clk 0:04:14.9]} 19. Kb1 {[%clk 0:09:04]}
19... Rf8 {[%clk 0:04:12.9]} 20. Qg3 {[%clk 0:08:42.5]} 20... Qe7 {[%clk
0:03:15]} 21. Ng5 {[%clk 0:08:35]} 21... Rg8 {[%clk 0:02:35]} 22. h4 {[%clk
0:08:35.7]} 22... c6 {[%clk 0:02:18.7]} 23. dxc6 {[%clk 0:08:24.7]} 23... bxc6
{[%clk 0:02:19.2]} 24. Qf2 {[%clk 0:08:20.2]} 24... Rf8 {[%clk 0:02:16.2]} 25.
Qg2 {[%clk 0:08:16.2]} 25... Kd7 {[%clk 0:02:09.7]} 26. Bf5+ {[%clk 0:08:16.5]}
26... Kc7 {[%clk 0:02:04.4]} 27. Ne6+ {[%clk 0:08:17.5]} 27... Kb7 {[%clk
0:02:04.5]} 28. Nxf8 {[%clk 0:08:18.1]} 28... Rxf8 {[%clk 0:02:04.9]} 29. Ne4
{[%clk 0:08:16.9]} 29... Bxe3 {[%clk 0:01:56.5]} 30. Nxf6 {[%clk 0:08:16.4]}
30... Rxf6 {[%clk 0:01:56.4]} 31. Be4 {[%clk 0:08:14.8]} 31... Be8 {[%clk
0:01:37.6]} 32. Rxf6 {[%clk 0:08:11.1]} 32... Qxf6 {[%clk 0:01:38.7]} 33. Rf1
{[%clk 0:08:12.4]} 33... Qxh4 {[%clk 0:01:29.5]} 34. Qg7+ {[%clk 0:08:09.5]}
34... Kb6 {[%clk 0:01:24.5]} 35. Bd3 {[%clk 0:07:47.3]} 35... Bg6 {[%clk
0:00:54.8]} 36. Bxg6 {[%clk 0:07:43.5]} 36... hxg6 {[%clk 0:00:55.8]} 37. Qxg6
{[%clk 0:07:42.2]} 37... Qxc4 {[%clk 0:00:55]} 38. Rd1 {[%clk 0:07:42.7]} 38...
d5 {[%clk 0:00:42.4]} 39. Qe8 {[%clk 0:07:36.6]} 39... e4 {[%clk 0:00:31]} 40.
Qb8+ {[%clk 0:07:35.6]} 40... Ka5 {[%clk 0:00:30.7]} 41. Qc7+ {[%clk 0:07:34.6]}
41... Bb6 {[%clk 0:00:31]} 42. Qe7 {[%clk 0:07:36]} 42... e3 {[%clk 0:00:26.3]}
43. Qa3+ {[%clk 0:07:36]} 43... Kb5 {[%clk 0:00:24.1]} 44. Rc1 {[%clk
0:07:36.6]} 44... e2 {[%clk 0:00:15]} 45. Qg3 {[%clk 0:07:31.5]} 45... Qe4+
{[%clk 0:00:14]} 46. Ka1 {[%clk 0:07:32.4]} 46... d4 {[%clk 0:00:14.2]} 47. Qb3+
{[%clk 0:07:31.3]} 47... Ka5 {[%clk 0:00:14.2]} 48. Qa3+ {[%clk 0:07:31.7]}
48... Kb5 {[%clk 0:00:15.5]} 49. Qb3+ {[%clk 0:06:40.9]} 49... Ka5 {[%clk
0:00:16.5]} 50. Qa3+ {[%clk 0:06:37.1]} 50... Kb5 {[%clk 0:00:17.7]} 51. Qb3+
{[%clk 0:06:29.8]} 1/2-1/2

[Event "GrandPrix_30.05"]
[Site "Chess.com"]
[Date "2020.05.30"]
[Round "4"]
[White "PresidenteMNE"]
[Black "Meizon19"]
[Result "0-1"]
[WhiteElo "2143"]
[BlackElo "2295"]
[TimeControl "600+2"]
[EndTime "9:49:05 PDT"]
[Termination "Meizon19 won by resignation"]

1. d4 {[%clk 0:09:44.8]} 1... Nf6 {[%clk 0:10:00.3]} 2. Bg5 {[%clk 0:09:45.2]}
2... d5 {[%clk 0:09:59.1]} 3. Nc3 {[%clk 0:09:45.3]} 3... Nbd7 {[%clk
0:09:54.2]} 4. e3 {[%clk 0:09:46.3]} 4... g6 {[%clk 0:09:54.4]} 5. f4 {[%clk
0:09:47.1]} 5... Bg7 {[%clk 0:09:53.7]} 6. Nf3 {[%clk 0:09:48.3]} 6... O-O
{[%clk 0:09:51]} 7. Bd3 {[%clk 0:09:46.7]} 7... c5 {[%clk 0:09:50.2]} 8. O-O
{[%clk 0:09:47.8]} 8... c4 {[%clk 0:09:28.2]} 9. Be2 {[%clk 0:09:46.2]} 9... b5
{[%clk 0:09:27.2]} 10. Ne5 {[%clk 0:09:38.1]} 10... Qb6 {[%clk 0:09:09]} 11.
Nxd7 {[%clk 0:09:28.7]} 11... Bxd7 {[%clk 0:08:56.4]} 12. Bxf6 {[%clk
0:09:27.7]} 12... exf6 {[%clk 0:08:51.3]} 13. Nxd5 {[%clk 0:09:28.3]} 13... Qd6
{[%clk 0:08:52.3]} 14. Bf3 {[%clk 0:09:23]} 14... f5 {[%clk 0:08:50]} 15. Qd2
{[%clk 0:09:01.4]} 15... Rfe8 {[%clk 0:08:43.6]} 16. a4 {[%clk 0:08:55.6]} 16...
Bc6 {[%clk 0:08:28.6]} 17. Nc3 {[%clk 0:08:43.7]} 17... b4 {[%clk 0:08:15.2]}
18. Nb5 {[%clk 0:08:42.1]} 18... Bxb5 {[%clk 0:07:21.6]} 19. axb5 {[%clk
0:08:31.4]} 19... c3 {[%clk 0:06:44.5]} 20. bxc3 {[%clk 0:08:27.4]} 20... bxc3
{[%clk 0:06:45.5]} 21. Qf2 {[%clk 0:07:52.6]} 21... Rab8 {[%clk 0:06:36.9]} 22.
Ra6 {[%clk 0:07:27.9]} 22... Rb6 {[%clk 0:06:35.2]} 23. Rxb6 {[%clk 0:07:08.9]}
23... Qxb6 {[%clk 0:06:25.1]} 24. Rd1 {[%clk 0:06:43.7]} 24... Qxb5 {[%clk
0:06:23.9]} 25. h3 {[%clk 0:06:16.9]} 25... a5 {[%clk 0:06:16.9]} 26. Kh2 {[%clk
0:06:02.6]} 26... a4 {[%clk 0:06:08.4]} 27. Qe1 {[%clk 0:06:03.7]} 27... Qb2
{[%clk 0:05:49.7]} 28. Bc6 {[%clk 0:06:04.5]} 28... Re7 {[%clk 0:03:58.5]} 29.
Bxa4 {[%clk 0:06:03.1]} 29... Qb4 {[%clk 0:03:59.1]} 30. Bb3 {[%clk 0:05:12.2]}
30... Bxd4 {[%clk 0:03:51.2]} 31. Qh4 {[%clk 0:05:13]} 31... Bxe3 {[%clk
0:03:34]} 32. Qf6 {[%clk 0:04:45.8]} 32... Bxf4+ {[%clk 0:03:12.2]} 33. Kh1
{[%clk 0:04:45.9]} 33... Bc7 {[%clk 0:03:05.1]} 34. Ra1 {[%clk 0:04:26.9]} 34...
Rd7 {[%clk 0:02:39.5]} 35. Qc6 {[%clk 0:03:57.7]} 35... Qd4 {[%clk 0:02:21.5]}
36. Ra8+ {[%clk 0:03:35.3]} 36... Kg7 {[%clk 0:02:21.4]} 0-1